bitfinex-derivatives/quotes_BTCF0:USTF0_20240829
["timestamp","ask_amount","ask_price","bid_price","bid_amount"]
[1724897816501,0.84870309,59157.0,59156.0,1e-08]
[1724897816704,1.95582309,59157.0,59156.0,1e-08]
[1724897817103,0.89552409,59157.0,59156.0,1e-08]
[1724897817309,0.28340409,59157.0,59156.0,0.36080001]
[1724897817510,0.19890509,59157.0,59156.0,0.36080001]
[1724897817711,0.01,59157.0,59156.0,0.36080001]
[1724897818506,0.01,59157.0,59156.0,0.44530101]
[1724897819802,0.005,59157.0,59156.0,0.44530101]
[1724897820002,0.007,59157.0,59156.0,0.44530101]
[1724897820204,0.002,59157.0,59156.0,0.44530101]
[1724897820413,0.004,59157.0,59156.0,0.44530101]
[1724897823305,0.03011437,59162.0,59161.0,0.084494]
[1724897823511,0.084488,59165.0,59162.0,0.084491]
[1724897823714,0.08449,59164.0,59162.0,0.084491]
[1724897823911,0.27310918,59164.0,59162.0,0.084491]
[1724897824107,0.27310918,59164.0,59163.0,0.084491]
[1724897824417,0.08449,59164.0,59163.0,0.084491]
[1724897824915,0.00025348,59167.0,59166.0,0.084486]
[1724897825105,0.03018639,59167.0,59166.0,0.084486]
[1724897825306,0.00025348,59167.0,59166.0,0.084486]
[1724897825914,0.08473848,59167.0,59166.0,0.084486]
[1724897826613,0.08473848,59167.0,59164.0,0.0548]
[1724897826918,0.38573848,59167.0,59166.0,0.001]
[1724897827221,0.15814865,59167.0,59166.0,0.002]
[1724897827715,0.15614865,59167.0,59166.0,0.002]
[1724897828113,0.8490504,59167.0,59166.0,0.002]
[1724897828313,0.8490504,59167.0,59157.0,0.1049]
[1724897828314,0.77725202,59167.0,59157.0,0.1049]
[1724897828518,0.01268662,59166.0,59157.0,0.1049]
[1724897828714,0.2575254,59167.0,59157.0,0.1049]
[1724897828911,0.18586175,59165.0,59157.0,0.1049]
[1724897829112,0.084488,59165.0,59160.0,0.084494]
[1724897829516,0.17971194,59164.0,59160.0,0.084494]
[1724897830021,0.26420094,59164.0,59160.0,0.084494]
[1724897830214,0.17971194,59164.0,59160.0,0.084494]
[1724897830514,0.19577409,59166.0,59160.0,0.084494]
[1724897830721,0.008,59165.0,59160.0,0.085494]
[1724897830913,0.008,59164.0,59160.0,0.086494]
[1724897831114,0.19770478,59164.0,59160.0,0.085494]
[1724897831417,0.29,59161.0,59160.0,0.002]
[1724897831614,0.374494,59161.0,59160.0,0.002]
[1724897831816,0.27419878,59161.0,59160.0,0.002]
[1724897832208,0.27419878,59161.0,59160.0,0.001]
[1724897832413,0.27419878,59161.0,59160.0,0.002]
[1724897833218,0.28219878,59161.0,59160.0,0.002]
[1724897833422,0.28219878,59161.0,59160.0,0.001]
[1724897833618,0.29019878,59161.0,59160.0,0.002]
[1724897834020,0.27419878,59161.0,59157.0,0.189399]
[1724897834214,0.29219878,59161.0,59160.0,0.002]
[1724897834524,0.29219878,59161.0,59160.0,0.3628]
[1724897835421,0.28319878,59161.0,59160.0,0.3618]
[1724897835616,0.28319878,59161.0,59160.0,0.446295]
[1724897835617,0.015,59161.0,59160.0,0.446295]
[1724897836011,0.012,59161.0,59160.0,0.445295]
[1724897836217,0.006,59161.0,59160.0,0.445295]
[1724897836413,0.015,59161.0,59160.0,0.446295]
[1724897836615,0.018,59161.0,59160.0,0.447295]
[1724897838119,0.084483,59169.0,59168.0,0.084484]
[1724897838323,0.084483,59169.0,59168.0,0.445284]
[1724897839618,0.091483,59169.0,59168.0,0.446284]
[1724897839927,0.099483,59169.0,59168.0,0.447284]
[1724897840622,0.03791755,59169.0,59168.0,0.446284]
[1724897840927,0.03791755,59169.0,59168.0,0.447284]
[1724897840928,0.04591755,59169.0,59168.0,0.447284]
[1724897842221,0.04591755,59169.0,59168.0,0.821768]
[1724897843728,0.00025348,59172.0,59171.0,0.084479]
[1724897843930,0.00850065,59177.0,59171.0,0.3608]
[1724897844226,0.00850065,59177.0,59176.0,0.3608]
[1724897844624,0.0306328,59178.0,59177.0,0.084471]
[1724897844829,0.08446,59185.0,59184.0,0.084461]
[1724897845028,0.08446,59185.0,59184.0,0.445261]
[1724897845532,0.11480267,59190.0,59189.0,0.084454]
[1724897845728,0.12336923,59190.0,59189.0,0.445254]
[1724897845935,0.03034967,59190.0,59189.0,0.445254]
[1724897846234,0.09308289,59194.0,59191.0,0.08445]
[1724897846434,0.084447,59194.0,59191.0,0.08445]
[1724897846639,0.084447,59194.0,59192.0,0.084449]
[1724897846826,0.01,59198.0,59193.0,0.084448]
[1724897847023,0.01,59198.0,59194.0,0.3608]
[1724897847622,0.084442,59197.0,59194.0,0.3608]
[1724897847829,0.03029783,59199.0,59194.0,0.3608]
[1724897848023,0.084431,59205.0,59198.0,0.084441]
[1724897848218,0.084431,59205.0,59204.0,0.3608]
[1724897848432,0.11498755,59205.0,59204.0,0.3608]
[1724897848726,0.30628743,59205.0,59204.0,0.3608]
[1724897849828,0.30628743,59205.0,59204.0,0.3618]
[1724897850528,0.30628743,59205.0,59204.0,0.002]
[1724897850922,1.41300743,59205.0,59204.0,0.002]
[1724897854234,0.1345497,59205.0,59204.0,0.002]
[1724897854729,0.2189807,59205.0,59204.0,0.002]
[1724897855629,0.249463,59205.0,59204.0,0.002]
[1724897859027,0.155032,59205.0,59204.0,0.447232]
[1724897859227,0.0304823,59205.0,59204.0,0.447232]
[1724897859428,0.3608,59211.0,59208.0,0.084426]
[1724897859734,0.3608,59211.0,59209.0,0.0548]
[1724897859936,0.3608,59211.0,59209.0,0.1064]
[1724897860132,0.19198011,59210.0,59204.0,0.44748549]
[1724897860332,0.084426,59209.0,59205.0,0.084431]
[1724897860737,0.19198011,59208.0,59205.0,0.084431]
[1724897861840,0.19198011,59208.0,59205.0,0.002]
[1724897861841,0.084428,59207.0,59205.0,0.002]
[1724897862237,0.1817843,59206.0,59205.0,0.002]
[1724897862434,0.2662133,59206.0,59205.0,0.002]
[1724897862833,0.084429,59206.0,59205.0,0.002]
[1724897863032,0.2662133,59206.0,59205.0,0.002]
[1724897864045,0.2662133,59206.0,59205.0,0.001]
[1724897864247,0.2662133,59206.0,59205.0,0.002]
[1724897866647,0.1817843,59206.0,59205.0,0.002]
[1724897866941,0.1817843,59206.0,59205.0,0.086431]
[1724897867242,0.1817843,59206.0,59205.0,0.192231]
[1724897868435,0.084425,59209.0,59205.0,0.192231]
[1724897868832,0.084429,59206.0,59205.0,0.1078]
[1724897870943,0.084429,59206.0,59205.0,0.1068]
[1724897871141,0.084429,59206.0,59205.0,0.002]
[1724897871342,0.55232194,59206.0,59205.0,0.002]
[1724897871640,0.55232194,59206.0,59204.0,0.00025349]
[1724897871641,0.168862,59205.0,59204.0,0.00025349]
[1724897871848,0.168862,59205.0,59204.0,1e-08]
[1724897871849,0.675582,59205.0,59204.0,1e-08]
[1724897872141,0.85347494,59205.0,59204.0,1e-08]
[1724897872343,0.26232394,59205.0,59204.0,1e-08]
[1724897872539,0.40348394,59205.0,59204.0,1e-08]
[1724897872739,0.27232394,59205.0,59204.0,1e-08]
[1724897872939,0.18789294,59205.0,59204.0,1e-08]
[1724897873546,0.21833548,59205.0,59204.0,0.04890001]
[1724897873943,0.21833548,59205.0,59204.0,0.04990001]
[1724897873944,0.21933548,59205.0,59204.0,0.04990001]
[1724897875647,0.22033548,59205.0,59204.0,0.05090001]
[1724897877343,0.21933548,59205.0,59204.0,0.04990001]
[1724897877544,0.20933548,59205.0,59204.0,0.04990001]
[1724897877848,0.21033548,59205.0,59204.0,0.05090001]
[1724897878051,0.21133548,59205.0,59204.0,0.05190001]
[1724897878254,0.21033548,59205.0,59204.0,0.05190001]
[1724897878747,0.20933548,59205.0,59204.0,0.05090001]
[1724897878949,0.20933548,59205.0,59204.0,0.04990001]
[1724897879146,0.20933548,59205.0,59204.0,0.05090001]
[1724897879741,0.207082,59205.0,59204.0,1.32648401]
[1724897879940,0.207082,59205.0,59204.0,1.24205201]
[1724897879941,0.03144254,59205.0,59204.0,1.24205201]
[1724897880157,0.03144254,59205.0,59204.0,0.64205201]
[1724897880447,0.03144254,59205.0,59204.0,0.13533201]
[1724897880755,0.001,59205.0,59204.0,0.13533201]
[1724897881057,0.001,59205.0,59204.0,0.05090001]
[1724897881654,0.03093996,59205.0,59204.0,0.04990001]
[1724897881846,0.001,59205.0,59204.0,0.04990001]
[1724897882244,0.001,59205.0,59204.0,0.05090001]
[1724897884151,0.085431,59205.0,59204.0,0.05090001]
[1724897884347,0.085431,59205.0,59204.0,0.04990001]
[1724897884348,0.446231,59205.0,59204.0,0.04990001]
[1724897884648,0.45890851,59205.0,59204.0,0.05090001]
[1724897885249,0.45890851,59205.0,59204.0,0.04990001]
[1724897885449,0.45790851,59205.0,59204.0,0.04990001]
[1724897885656,0.45890851,59205.0,59204.0,0.05090001]
[1724897890361,0.73519917,59205.0,59204.0,0.00200001]
[1724897891254,0.65076817,59205.0,59204.0,0.00200001]
[1724897894359,0.65076817,59205.0,59204.0,0.00162359]
[1724897894861,0.73519917,59205.0,59204.0,0.00162359]
[1724897895074,0.084438,59200.0,59195.0,0.0505]
[1724897895361,0.084441,59198.0,59195.0,0.0505]
[1724897895659,0.26661445,59198.0,59195.0,0.0505]
[1724897897264,0.26661445,59198.0,59197.0,0.0534]
[1724897897667,0.26661445,59198.0,59193.0,0.00025349]
[1724897897668,0.54297345,59198.0,59193.0,0.00025349]
[1724897897963,0.54297345,59198.0,59180.0,0.4152]
[1724897897964,0.08445,59192.0,59180.0,0.4152]
[1724897898156,0.084459,59185.0,59181.0,0.0497]
[1724897899565,0.084459,59185.0,59181.0,0.0577]
[1724897900365,0.28427799,59191.0,59181.0,0.0577]
[1724897900567,0.084459,59186.0,59181.0,0.0577]
[1724897901069,0.084459,59186.0,59182.0,0.0515]
[1724897901267,0.084459,59186.0,59185.0,0.3608]
[1724897903560,0.084459,59186.0,59185.0,0.3638]
[1724897904661,0.084459,59186.0,59185.0,0.3678]
[1724897906170,0.084459,59186.0,59185.0,0.007]
[1724897906366,0.084459,59186.0,59185.0,0.3678]
[1724897908179,0.2619501,59186.0,59185.0,0.3678]
[1724897909176,0.1774911,59186.0,59185.0,0.3678]
[1724897909672,0.18482053,59188.0,59185.0,0.3678]
[1724897909970,0.084456,59188.0,59185.0,0.3678]
[1724897910169,0.26927653,59188.0,59185.0,0.3678]
[1724897910369,0.084456,59188.0,59185.0,0.3678]
[1724897910777,0.18032033,59187.0,59185.0,0.3678]
[1724897910968,0.084456,59188.0,59185.0,0.3678]
[1724897911682,0.084456,59188.0,59187.0,0.3608]
[1724897914480,0.084456,59188.0,59187.0,0.3628]
[1724897917383,0.26049469,59188.0,59187.0,0.3628]
[1724897919890,0.26049469,59188.0,59187.0,0.002]
[1724897924495,0.46603869,59188.0,59171.0,0.3608]
[1724897924691,0.374469,59178.0,59176.0,0.35111831]
[1724897924892,0.084484,59168.0,59167.0,0.00176]
[1724897925393,0.084484,59168.0,59166.0,0.29592755]
[1724897926100,0.084484,59168.0,59167.0,0.002]
[1724897927794,0.085484,59168.0,59166.0,0.29592755]
[1724897927994,0.084485,59167.0,59166.0,0.29592755]
[1724897928402,0.084485,59167.0,59166.0,0.0546]
[1724897930492,0.02992144,59168.0,59166.0,0.0546]
[1724897930689,0.446282,59170.0,59166.0,0.0546]
[1724897930904,0.445282,59170.0,59166.0,0.0546]
[1724897931200,0.18126226,59169.0,59166.0,0.0546]
[1724897931398,0.26574426,59169.0,59166.0,0.0546]
[1724897931999,0.084484,59168.0,59166.0,0.0546]
[1724897936195,0.3608,59167.0,59166.0,0.0546]
[1724897937908,0.084484,59168.0,59166.0,0.0546]
[1724897938106,0.3608,59167.0,59166.0,0.0546]
[1724897940203,0.445285,59167.0,59166.0,0.0546]
[1724897941498,0.084485,59167.0,59166.0,0.0546]
[1724897941699,0.02972878,59170.0,59169.0,0.084482]
[1724897941999,0.08472949,59173.0,59166.0,0.56256]
[1724897942198,0.08472949,59173.0,59166.0,0.0546]
[1724897942791,0.003,59170.0,59169.0,0.084482]
[1724897942997,0.006,59170.0,59169.0,0.084482]
[1724897943801,0.003,59170.0,59169.0,0.084482]
[1724897944506,0.003,59170.0,59169.0,0.591482]
[1724897944701,0.006,59170.0,59169.0,0.952282]
[1724897944896,0.003,59170.0,59169.0,0.952282]
[1724897945606,0.006,59170.0,59169.0,0.952282]
[1724897947311,0.006,59170.0,59169.0,0.445282]
[1724897947702,0.003,59170.0,59169.0,0.530764]
[1724897948011,0.03059121,59173.0,59172.0,0.084478]
[1724897949012,0.44525,59192.0,59178.0,0.084469]
[1724897949305,0.44525,59192.0,59179.0,0.052]
[1724897949306,0.00841078,59185.0,59179.0,0.052]
[1724897949712,0.00841078,59185.0,59181.0,0.084465]
[1724897949901,0.11468195,59182.0,59181.0,0.084465]
[1724897950298,0.11768195,59182.0,59181.0,0.084465]
[1724897951811,0.12168195,59182.0,59181.0,0.084465]
[1724897955718,0.03721795,59182.0,59181.0,0.084465]
[1724897958311,0.03421795,59182.0,59181.0,0.084465]
[1724897958912,0.03221795,59182.0,59181.0,0.084465]
[1724897961715,0.03221795,59182.0,59181.0,0.16893]
[1724897962107,0.03221795,59182.0,59181.0,0.28893]
[1724897962814,0.03121795,59182.0,59181.0,0.29193]
[1724897963007,0.03021795,59182.0,59181.0,0.29193]
[1724897963307,0.00025349,59187.0,59186.0,0.084458]
[1724897963512,0.00025349,59187.0,59186.0,0.204458]
[1724897964417,1e-08,59187.0,59186.0,0.795796]
[1724897964618,1e-08,59187.0,59186.0,1.395796]
[1724897965714,0.01268452,59196.0,59195.0,0.084445]
[1724897965921,0.36918633,59197.0,59196.0,0.084444]
[1724897966421,0.3608,59197.0,59196.0,0.084444]
[1724897967417,0.3638,59197.0,59196.0,0.085444]
[1724897968023,0.39416427,59197.0,59196.0,0.085444]
[1724897968422,0.01268452,59207.0,59204.0,0.084432]
[1724897968728,0.084431,59205.0,59204.0,0.084432]
[1724897969712,0.084431,59205.0,59204.0,0.085432]
[1724897969911,0.088431,59205.0,59204.0,0.086432]
[1724897971019,0.004,59205.0,59204.0,0.086432]
[1724897972230,0.124,59205.0,59204.0,0.086432]
[1724897977532,0.124,59205.0,59204.0,0.447232]
[1724897978227,0.124,59205.0,59204.0,0.086432]
[1724897993449,0.208431,59205.0,59204.0,0.002]
[1724897993844,0.124,59205.0,59204.0,0.086432]
[1724897995046,0.208431,59205.0,59204.0,0.086432]
[1724897996649,0.004,59205.0,59204.0,0.086432]
[1724897996843,0.004,59205.0,59204.0,0.191532]
[1724897997147,0.004,59205.0,59204.0,0.244932]
[1724898000639,0.04358868,59209.0,59204.0,0.1605]
[1724898000846,0.084428,59207.0,59206.0,0.084428]
[1724898001042,0.27580728,59207.0,59206.0,0.084428]
[1724898001350,0.084428,59207.0,59206.0,0.084428]
[1724898002750,0.084428,59207.0,59206.0,0.086428]
[1724898003655,0.204428,59207.0,59206.0,0.086428]
[1724898010946,0.084428,59207.0,59206.0,0.086428]
[1724898012042,0.084428,59207.0,59206.0,0.085428]
[1724898012249,0.084428,59207.0,59206.0,0.086428]
[1724898012848,0.084428,59207.0,59206.0,0.085428]
[1724898013048,0.36917608,59208.0,59206.0,0.085428]
[1724898013049,0.3608,59208.0,59207.0,0.084428]
[1724898015955,0.445226,59208.0,59207.0,0.084428]
[1724898016163,0.445226,59208.0,59207.0,0.085428]
[1724898016764,0.445226,59208.0,59207.0,0.086428]
[1724898017654,0.445226,59208.0,59207.0,0.085428]
[1724898017865,0.445226,59208.0,59207.0,0.086428]
[1724898021556,0.62803972,59208.0,59207.0,0.086428]
[1724898021764,0.64071699,59208.0,59207.0,0.086428]
[1724898022462,0.64071699,59208.0,59207.0,0.002]
[1724898023062,1.74739699,59208.0,59199.0,0.3608]
[1724898023268,0.12,59201.0,59199.0,0.3608]
[1724898023768,0.18650145,59200.0,59199.0,0.3608]
[1724898023968,0.54730145,59200.0,59199.0,0.084439]
[1724898024169,0.3608,59200.0,59199.0,0.084439]
[1724898025974,0.3618,59200.0,59199.0,0.084439]
[1724898026374,0.3628,59200.0,59199.0,0.084439]
[1724898026668,0.002,59200.0,59199.0,0.084439]
[1724898026974,0.003,59200.0,59199.0,0.084439]
[1724898027565,0.002,59200.0,59199.0,0.084439]
[1724898027764,0.003,59200.0,59199.0,0.084439]
[1724898028364,0.002,59200.0,59199.0,0.084439]
[1724898028565,0.003,59200.0,59199.0,0.084439]
[1724898028875,0.002,59200.0,59199.0,0.084439]
[1724898029370,0.001,59200.0,59199.0,0.084439]
[1724898029571,0.002,59200.0,59199.0,0.084439]
[1724898032167,0.001,59200.0,59199.0,0.084439]
[1724898032370,0.445227,59208.0,59199.0,0.084439]
[1724898032371,0.3608,59208.0,59200.0,0.50676]
[1724898032570,0.3608,59208.0,59207.0,0.12]
[1724898033759,0.3608,59208.0,59207.0,0.204428]
[1724898033760,0.39176232,59208.0,59207.0,0.204428]
[1724898034765,0.39176232,59208.0,59207.0,0.205428]
[1724898035275,0.39176232,59208.0,59207.0,0.206428]
[1724898035771,0.03096232,59208.0,59207.0,0.290856]
[1724898035974,0.36933018,59214.0,59213.0,0.084419]
[1724898036269,0.36933018,59214.0,59213.0,0.204419]
[1724898037064,0.39954662,59214.0,59213.0,0.204419]
[1724898037271,0.39954662,59214.0,59213.0,0.084419]
[1724898037970,0.51954662,59214.0,59213.0,0.084419]
[1724898038370,0.51954662,59214.0,59213.0,0.085419]
[1724898038570,0.51954662,59214.0,59213.0,0.086419]
[1724898040279,0.39954662,59214.0,59213.0,0.206419]
[1724898043679,0.48396462,59214.0,59213.0,0.206419]
[1724898046970,0.48396462,59214.0,59213.0,0.086419]
[1724898047175,0.48396462,59214.0,59213.0,0.206419]
[1724898047795,0.48396462,59214.0,59213.0,0.122]
[1724898048683,0.60396462,59214.0,59213.0,0.002]
[1724898049995,0.48396462,59214.0,59213.0,0.002]
[1724898050386,0.88435141,59214.0,59213.0,0.002]
[1724898050687,0.89702868,59214.0,59213.0,0.002]
[1724898052490,0.89702868,59214.0,59208.0,0.00025349]
[1724898052491,0.16885,59209.0,59208.0,0.00025349]
[1724898052683,0.084432,59204.0,59203.0,0.24132755]
[1724898052885,0.4808,59204.0,59193.0,0.0545]
[1724898053084,0.084451,59191.0,59190.0,0.24220755]
[1724898053284,0.445251,59191.0,59190.0,0.24132755]
[1724898053684,0.445251,59191.0,59190.0,0.12]
[1724898054894,0.445251,59191.0,59190.0,0.131]
[1724898056088,0.445251,59191.0,59190.0,0.143]
[1724898057492,0.47596336,59191.0,59190.0,0.143]
[1724898057888,0.11516336,59191.0,59190.0,0.143]
[1724898058083,0.47596336,59191.0,59190.0,0.143]
[1724898061498,0.59596336,59191.0,59190.0,0.023]
[1724898063599,1.36809808,59191.0,59190.0,0.023]
[1724898063792,0.78948435,59191.0,59190.0,0.023]
[1724898064097,0.78948435,59191.0,59190.0,0.143]
[1724898064098,0.66948435,59191.0,59190.0,0.143]
[1724898064299,0.47596336,59191.0,59190.0,0.143]
[1724898064892,0.47596336,59191.0,59190.0,0.139]
[1724898066097,0.47696336,59191.0,59190.0,0.135]
[1724898069901,0.47696336,59191.0,59190.0,0.015]
[1724898070103,0.47696336,59191.0,59190.0,0.135]
[1724898071587,0.39251236,59191.0,59190.0,0.135]
[1724898071791,0.39251236,59191.0,59190.0,0.219452]
[1724898073596,0.03171236,59191.0,59190.0,0.219452]
[1724898073804,0.39251236,59191.0,59190.0,0.219452]
[1724898074098,0.03171236,59191.0,59190.0,0.219452]
[1724898078005,0.00025349,59196.0,59190.0,0.219452]
[1724898078006,1e-08,59196.0,59195.0,0.16889]
[1724898078303,0.3608,59202.0,59201.0,0.084436]
[1724898078606,0.39103322,59202.0,59201.0,0.204436]
[1724898079008,0.03023322,59202.0,59201.0,0.204436]
[1724898079201,0.084434,59203.0,59201.0,0.204436]
[1724898079606,0.084434,59203.0,59202.0,0.112]
[1724898079811,0.084429,59207.0,59206.0,0.084428]
[1724898080111,0.27006937,59207.0,59206.0,0.204428]
[1724898080408,0.084429,59207.0,59206.0,0.084428]
[1724898080711,0.084431,59205.0,59204.0,0.084432]
[1724898083103,0.090431,59205.0,59204.0,0.084432]
[1724898083405,0.092431,59205.0,59204.0,0.084432]
[1724898083600,0.008,59205.0,59204.0,0.204432]
[1724898084804,0.446185,59209.0,59204.0,0.12]
[1724898084805,0.41198122,59209.0,59204.0,0.12]
[1724898085111,0.26883054,59207.0,59205.0,0.08443]
[1724898085611,0.084428,59207.0,59205.0,0.08443]
[1724898086301,0.091428,59207.0,59205.0,0.08543]
[1724898087110,0.091428,59207.0,59205.0,0.08643]
[1724898087998,0.007,59207.0,59205.0,0.08643]
[1724898088199,0.007,59207.0,59206.0,0.084429]
[1724898089306,0.3608,59209.0,59208.0,0.084426]
[1724898089605,0.54541195,59209.0,59208.0,0.204426]
[1724898090905,0.54541195,59209.0,59208.0,0.206426]
[1724898091503,0.02967411,59210.0,59209.0,0.084425]
[1724898091707,0.01267727,59211.0,59210.0,0.084424]
[1724898091901,0.084421,59212.0,59211.0,0.084422]
[1724898092596,0.0927101,59212.0,59211.0,0.084422]
[1724898093006,0.4535101,59212.0,59211.0,0.084422]
[1724898094003,0.3690891,59212.0,59211.0,0.204422]
[1724898094202,0.3690891,59212.0,59211.0,0.206422]
[1724898094203,0.3710891,59212.0,59211.0,0.206422]
[1724898106920,0.3710891,59212.0,59211.0,0.086422]
[1724898107120,0.3710891,59212.0,59211.0,0.206422]
[1724898132527,0.3628,59212.0,59211.0,0.206422]
[1724898136334,0.002,59212.0,59211.0,0.206422]
[1724898145531,0.086421,59212.0,59211.0,0.086422]
[1724898145735,0.447221,59212.0,59211.0,0.002]
[1724898145938,0.447221,59212.0,59201.0,0.00025349]
[1724898145939,0.084435,59202.0,59201.0,0.00025349]
[1724898146139,0.084446,59194.0,59189.0,0.084453]
[1724898146344,0.12,59190.0,59187.0,0.1642]
[1724898146540,0.3608,59188.0,59176.0,0.084471]
[1724898146748,0.12,59178.0,59176.0,0.0532]
[1724898147446,0.106,59178.0,59176.0,0.0532]
[1724898147948,0.204465,59181.0,59177.0,0.12]
[1724898149036,0.001,59178.0,59177.0,0.12]
[1724898149245,0.001,59178.0,59177.0,0.134]
[1724898149443,0.12,59178.0,59177.0,0.014]
[1724898150161,0.12,59178.0,59176.0,0.0532]
[1724898150351,0.121,59178.0,59177.0,0.014]
[1724898151844,0.0463072,59180.0,59176.0,0.0672]
[1724898152043,0.4808,59177.0,59176.0,0.015]
[1724898152257,0.565271,59177.0,59171.0,0.00025349]
[1724898152454,0.565278,59172.0,59171.0,0.00025349]
[1724898152651,0.441278,59172.0,59171.0,0.00025349]
[1724898152856,0.446231,59177.0,59171.0,0.12025349]
[1724898153055,0.2508,59176.0,59171.0,0.12025349]
[1724898153353,0.00205096,59176.0,59175.0,0.926074]
[1724898153556,0.001,59177.0,59176.0,0.084472]
[1724898153745,0.001,59177.0,59176.0,0.190972]
[1724898154056,0.001,59177.0,59176.0,1.297932]
[1724898154445,0.001,59177.0,59176.0,0.697932]
[1724898155059,0.002,59177.0,59176.0,0.697932]
[1724898155854,0.002,59177.0,59176.0,1.420532]
[1724898156353,0.02974513,59185.0,59184.0,0.084461]
[1724898156655,0.3608,59212.0,59184.0,0.084461]
[1724898156656,0.084444,59196.0,59191.0,0.084451]
[1724898156851,0.084444,59196.0,59195.0,0.4808]
[1724898159060,0.098444,59196.0,59195.0,0.4808]
[1724898159256,0.112444,59196.0,59195.0,0.4808]
[1724898159860,0.112444,59196.0,59195.0,0.3608]
[1724898160349,0.112444,59196.0,59192.0,0.0563]
[1724898160350,0.084447,59194.0,59192.0,0.0563]
[1724898160556,0.084448,59193.0,59192.0,0.0563]
[1724898162163,0.097448,59193.0,59192.0,0.0563]
[1724898162752,0.111448,59193.0,59192.0,0.0563]
[1724898168558,0.098448,59193.0,59192.0,0.0563]
[1724898168758,0.093448,59193.0,59192.0,0.0573]
[1724898169066,0.103448,59193.0,59192.0,0.0573]
[1724898169263,0.103448,59193.0,59192.0,0.001]
[1724898169960,0.104448,59193.0,59192.0,0.001]
[1724898171159,0.105448,59193.0,59192.0,0.001]
[1724898171962,0.914448,59193.0,59191.0,0.08445]
[1724898172261,0.939448,59193.0,59192.0,0.001]
[1724898172673,0.940448,59193.0,59192.0,0.001]
[1724898172867,0.933448,59193.0,59192.0,0.001]
[1724898173370,0.084449,59192.0,59191.0,0.08545]
[1724898174866,0.084449,59192.0,59191.0,0.08445]
[1724898175468,0.10812961,59192.0,59191.0,0.08445]
[1724898175665,0.12012961,59192.0,59191.0,0.08445]
[1724898176165,0.107449,59192.0,59191.0,0.08445]
[1724898176366,0.12012943,59192.0,59191.0,0.08445]
[1724898178570,0.107449,59192.0,59191.0,0.08445]
[1724898178777,0.13828928,59192.0,59191.0,0.08445]
[1724898179570,0.05384028,59192.0,59191.0,0.08445]
[1724898180069,0.05384028,59192.0,59191.0,0.20445]
[1724898182273,0.05384028,59192.0,59191.0,0.56525]
[1724898182478,0.13828928,59192.0,59191.0,0.56525]
[1724898183185,0.13828928,59192.0,59191.0,0.20445]
[1724898183478,0.13828928,59192.0,59191.0,0.56525]
[1724898183779,0.13828928,59192.0,59191.0,0.44525]
[1724898184277,0.15096962,59192.0,59191.0,0.44525]
[1724898184684,0.15096962,59192.0,59191.0,0.08445]
[1724898185981,0.06652062,59192.0,59191.0,0.08445]
[1724898186184,0.06652062,59192.0,59191.0,0.13795]
[1724898188086,0.06652062,59192.0,59191.0,0.25795]
[1724898188682,0.15096962,59192.0,59191.0,0.25795]
[1724898189083,0.13828928,59192.0,59191.0,0.61875]
[1724898189475,0.150969,59192.0,59191.0,0.61875]
[1724898191786,0.150969,59192.0,59191.0,0.49875]
[1724898193293,0.06652,59192.0,59191.0,0.61875]
[1724898194489,0.150969,59192.0,59191.0,0.61875]
[1724898196088,0.06652,59192.0,59191.0,0.61875]
[1724898196283,0.05384028,59192.0,59191.0,0.61875]
[1724898196581,0.05384028,59192.0,59191.0,0.703201]
[1724898196780,0.05384028,59192.0,59191.0,0.61875]
[1724898196987,0.05384028,59192.0,59191.0,0.49875]
[1724898197287,0.17384028,59192.0,59191.0,0.44525]
[1724898198777,0.25828928,59192.0,59191.0,0.44525]
[1724898202091,0.05384028,59192.0,59191.0,0.44525]
[1724898207193,0.05384028,59192.0,59191.0,0.08445]
[1724898207503,0.05384028,59192.0,59191.0,0.44525]
[1724898209994,0.34273828,59192.0,59191.0,0.3608]
[1724898210204,0.34273828,59192.0,59188.0,0.00025349]
[1724898210205,0.168908,59189.0,59188.0,0.00025349]
[1724898210496,0.084461,59184.0,59183.0,0.24132755]
[1724898210690,1.034461,59184.0,59183.0,0.24132755]
[1724898211090,1.04714072,59184.0,59183.0,0.24132755]
[1724898211803,1.04914072,59184.0,59183.0,0.24132755]
[1724898212797,0.01467972,59184.0,59183.0,0.80658955]
[1724898213001,0.002,59184.0,59183.0,0.80658955]
[1724898213204,0.832,59184.0,59183.0,0.80658955]
[1724898213503,0.01467972,59184.0,59183.0,0.80658955]
[1724898213692,0.002,59184.0,59183.0,0.80658955]
[1724898213889,0.002,59184.0,59183.0,0.565262]
[1724898214292,0.03187666,59184.0,59183.0,0.565262]
[1724898214493,0.002,59184.0,59183.0,0.565262]
[1724898214693,0.005,59184.0,59183.0,0.565262]
[1724898216396,0.005,59184.0,59183.0,0.445262]
[1724898219498,0.125,59184.0,59183.0,0.445262]
[1724898223502,0.209461,59184.0,59183.0,0.445262]
[1724898229206,0.209461,59184.0,59183.0,0.3608]
[1724898229914,0.293922,59184.0,59183.0,0.3608]
[1724898231606,0.293922,59184.0,59178.0,0.00025349]
[1724898231607,0.084468,59179.0,59178.0,0.00025349]
[1724898231810,0.25064,59179.0,59169.0,0.3608]
[1724898232006,0.204481,59170.0,59169.0,0.3608]
[1724898232408,0.38749387,59170.0,59169.0,0.3608]
[1724898232904,0.38149387,59170.0,59169.0,0.3608]
[1724898233511,0.38349387,59170.0,59169.0,0.3608]
[1724898234304,0.26949387,59170.0,59169.0,0.3608]
[1724898234806,0.27249387,59170.0,59169.0,0.3608]
[1724898235906,0.39249387,59170.0,59169.0,0.3608]
[1724898236418,0.42309437,59170.0,59169.0,0.3608]